bitfinex/quotes_ETHUSD_20250326
["timestamp","ask_amount","ask_price","bid_price","bid_amount"]
[1743006108649,0.18279834,2018.0,2017.9,15.05]
[1743006108970,0.18279834,2018.0,2017.9,14.5]
[1743006109126,9.12501831,2018.0,2017.9,14.5]
[1743006109333,4.34999054,2018.0,2017.9,14.5]
[1743006109535,4.34999054,2018.0,2017.8,4.847]
[1743006109771,0.18037223,2018.0,2017.8,11.14255135]
[1743006110267,9.12454831,2018.2,2017.8,25.64255135]
[1743006110430,0.18032556,2017.9,2017.8,26.19255135]
[1743006110771,3.0,2018.3,2017.9,6.2557]
[1743006110934,4.95472,2018.3,2017.9,11.21126]
[1743006111256,3.0,2018.4,2018.1,0.55]
[1743006111558,5.71468,2018.5,2018.3,0.55]
[1743006111559,3.0,2018.5,2018.3,0.55]
[1743006112443,7.95427,2018.5,2018.3,0.55]
[1743006112641,3.0,2018.5,2018.3,0.55]
[1743006112838,7.95417,2018.5,2018.4,14.5]
[1743006113924,7.95441,2018.4,2018.3,5.397]
[1743006114543,3.0,2018.4,2018.3,19.897]
[1743006114936,9.12356831,2018.6,2018.3,19.897]
[1743006115139,4.16961831,2018.6,2018.4,2.564388]
[1743006115354,9.12357831,2018.6,2018.4,2.564388]
[1743006115757,14.07766831,2018.6,2018.4,2.564388]
[1743006115926,14.07766831,2018.6,2018.3,19.897]
[1743006116126,4.16961831,2018.4,2018.3,5.397]
[1743006116550,12.12402831,2018.4,2018.3,5.397]
[1743006117126,7.16961831,2018.4,2018.3,5.397]
[1743006118429,3.0,2018.4,2018.3,5.397]
[1743006120152,3.0,2018.4,2018.3,19.897]
[1743006120475,3.0,2018.4,2018.3,23.27264668]
[1743006121272,7.95441,2018.4,2018.3,19.347]
[1743006121760,8.13501554,2018.4,2018.3,19.347]
[1743006122866,3.18060554,2018.4,2018.3,20.6762]
[1743006123382,0.18060554,2018.4,2018.3,25.63086]
[1743006123532,0.18060554,2018.4,2018.3,33.45271499]
[1743006123869,0.07,2018.9,2018.8,0.55]
[1743006124162,0.23834183,2018.9,2018.8,5.396]
[1743006124467,0.07,2018.9,2018.8,5.396]
[1743006124767,0.23834183,2018.9,2018.8,5.396]
[1743006124967,0.23834183,2018.9,2018.8,4.846]
[1743006125132,5.98973183,2018.9,2018.8,4.846]
[1743006126934,4.95346,2018.8,2018.6,0.55]
[1743006127134,5.98973183,2018.9,2018.7,0.7519]
[1743006127135,0.07,2018.9,2018.7,0.7519]
[1743006127335,5.02322,2018.9,2018.8,4.846]
[1743006128454,4.95358,2018.8,2018.6,0.55]
[1743006128651,9.12319831,2018.8,2018.6,5.396]
[1743006129166,4.9538,2018.7,2018.3,5.74815]
[1743006129472,4.16961831,2018.6,2018.5,4.845]
[1743006129682,3.0,2018.7,2018.5,4.845]
[1743006129908,7.95377,2018.7,2018.5,4.845]
[1743006130085,0.07,2018.9,2018.6,1.3028]
[1743006130243,0.07,2018.9,2018.7,1.15972878]
[1743006130857,0.07,2018.9,2018.8,4.95343]
[1743006131060,0.07,2018.9,2018.7,11.017387]
[1743006131287,0.07,2018.9,2018.7,6.063777]
[1743006131961,0.07,2018.9,2018.7,6.11329686]
[1743006132142,0.07,2018.9,2018.8,5.69503969]
[1743006132347,0.07,2018.9,2018.8,0.74160969]
[1743006132741,0.07,2018.9,2018.8,15.24160969]
[1743006135372,0.07,2018.9,2018.8,20.74503969]
[1743006136292,0.07,2018.9,2018.8,21.52133969]
[1743006136660,0.22886878,2018.9,2018.8,21.52133969]
[1743006136859,0.07,2018.9,2018.8,21.52133969]
[1743006137060,0.22886878,2018.9,2018.8,21.52133969]
[1743006137272,0.07,2018.9,2018.8,21.52133969]
[1743006137473,0.22886878,2018.9,2018.8,15.79160969]
[1743006137673,0.07,2018.9,2018.8,15.79160969]
[1743006137874,0.22886878,2018.9,2018.8,15.79160969]
[1743006138890,0.22886878,2018.9,2018.8,16.79336114]
[1743006139473,0.9,2019.1,2019.0,4.95294]
[1743006139677,0.9,2019.1,2019.0,13.38719263]
[1743006139892,0.9,2019.1,2019.0,13.33767011]
[1743006140276,0.9,2019.1,2019.0,27.83767011]
[1743006141607,0.9,2019.1,2019.0,22.88473011]
[1743006141818,5.8527,2019.1,2019.0,16.72963011]
[1743006142023,0.9,2019.1,2018.9,4.844]
[1743006142223,0.9,2019.1,2018.4,9.12402831]
[1743006142224,5.77874,2019.0,2018.5,0.7717]
[1743006142526,9.94923831,2018.7,2018.5,19.344]
[1743006142819,4.95392,2018.6,2018.5,4.844]
[1743006143219,4.95392,2018.6,2018.5,19.344]
[1743006143425,7.95392,2018.6,2018.5,19.344]
[1743006143631,7.95392,2018.6,2018.5,4.844]
[1743006143932,4.95425,2018.5,2018.4,4.844]
[1743006144099,4.95425,2018.5,2018.4,19.344]
[1743006144300,7.95425,2018.5,2018.4,19.344]
[1743006145650,3.0,2018.9,2018.6,0.55]
[1743006145939,3.0,2018.9,2018.4,2.78780042]
[1743006145940,4.95384,2018.7,2018.4,2.78780042]
[1743006146120,4.95419,2018.5,2018.4,4.844]
[1743006146328,4.95419,2018.5,2018.0,0.8011]
[1743006146329,5.73004,2018.4,2018.0,0.8011]
[1743006146513,5.78364743,2018.4,2018.2,4.844]
[1743006146920,10.73824743,2018.4,2018.2,4.844]
[1743006147102,0.14562972,2018.3,2018.2,4.844]
[1743006147304,3.0,2018.4,2018.2,7.354028]
[1743006147517,0.14562972,2018.3,2018.2,7.354028]
[1743006147722,3.0,2018.4,2018.2,7.354028]
[1743006147922,0.14562972,2018.3,2018.2,7.354028]
[1743006148127,3.0,2018.4,2018.2,4.844]
[1743006148427,8.00801743,2018.4,2018.3,14.5]
[1743006149612,8.82621743,2018.4,2018.3,14.5]
[1743006150408,3.05360743,2018.4,2018.3,14.5]
[1743006150624,3.0,2018.4,2018.3,14.5]
[1743006151130,7.95441,2018.4,2018.3,14.5]
[1743006151738,8.09779414,2018.4,2018.3,14.5]
[1743006152639,8.15140157,2018.4,2018.1,4.844]
[1743006152841,13.10603157,2018.4,2018.1,4.844]
[1743006153047,8.09779414,2018.4,2018.2,14.5]
[1743006153343,8.15140157,2018.4,2018.2,14.5]
[1743006153630,4.95466,2018.3,2018.2,14.5]
[1743006153808,7.95466,2018.3,2018.2,14.5]
[1743006154133,8.09804414,2018.3,2018.2,14.5]
[1743006154531,3.14338414,2018.3,2018.2,14.5]
[1743006154714,3.14338414,2018.3,2018.2,15.53536424]
[1743006155406,0.14338414,2018.3,2018.2,16.08536424]
[1743006155605,4.95304,2019.0,2018.2,16.08536424]
[1743006155606,1.6547,2019.1,2018.7,4.95358]
[1743006155833,0.9,2019.1,2018.8,4.845]
[1743006156054,5.8527,2019.1,2018.8,4.845]
[1743006156257,5.8527,2019.1,2018.9,14.5]
[1743006156563,3.0,2019.0,2018.9,14.5]
[1743006156742,3.0,2019.0,2018.8,4.845]
[1743006157253,5.90630743,2019.1,2018.8,19.345]
[1743006157434,3.0,2019.0,2018.8,19.345]
[1743006158943,7.953,2019.0,2018.8,19.345]
[1743006159339,5.00692743,2018.9,2018.6,0.55]
[1743006159529,4.95354,2018.8,2018.6,4.844]
[1743006160252,5.00686743,2018.9,2018.6,4.844]
[1743006160558,3.0,2019.0,2018.7,5.74647]
[1743006160753,8.00655743,2019.0,2018.7,1.851847]
[1743006160913,8.00655743,2019.0,2018.6,4.844]
[1743006161108,7.95322,2018.9,2018.8,14.5]
[1743006161341,3.0,2018.9,2018.8,14.5]
[1743006161942,7.95319,2018.9,2018.8,14.5]
[1743006162153,8.74989,2018.9,2018.8,14.5]
[1743006162326,8.80349743,2018.9,2018.8,14.5]
[1743006162842,7.95343,2018.8,2018.7,4.844]
[1743006163043,7.95343,2018.8,2018.3,5.50465]
[1743006163044,3.0,2018.6,2018.5,4.844]
[1743006163349,3.0,2018.6,2018.5,19.344]
[1743006164125,3.0,2018.6,2018.5,25.66107]
[1743006164322,3.0,2018.6,2018.5,20.7069]
[1743006164527,4.95352,2018.8,2018.5,23.273012]
[1743006164740,4.95352,2018.8,2018.5,20.7069]
[1743006164926,9.90497734,2018.9,2018.5,20.7069]
[1743006165127,9.90497734,2018.9,2018.5,25.66102]
[1743006165438,14.85838734,2018.9,2018.5,20.7069]
[1743006165640,3.0,2018.7,2018.5,20.7069]
[1743006166539,7.95377,2018.7,2018.6,4.844]
[1743006166742,12.10877734,2018.7,2018.6,4.844]
[1743006167330,12.10877734,2018.7,2018.5,14.5]
[1743006167524,5.00752743,2018.6,2018.2,5.99011424]
[1743006167723,5.00752743,2018.6,2018.3,6.07565642]
[1743006168164,5.00752743,2018.6,2018.4,14.5]
[1743006173064,17.06256734,2018.7,2018.4,14.5]
[1743006173272,5.00766743,2018.6,2018.4,14.5]
[1743006173553,9.96176743,2018.6,2018.4,14.5]
[1743006173734,9.90816,2018.6,2018.4,14.5]
[1743006174362,4.95406,2018.6,2018.4,14.5]
[1743006174664,0.05360743,2018.5,2018.4,14.5]
[1743006175234,8.00777743,2018.5,2018.4,14.5]
[1743006177738,3.0,2018.5,2018.4,14.5]
[1743006178062,3.0,2018.6,2018.4,17.732883]
[1743006178669,3.0,2018.6,2018.0,9.11036734]
[1743006178670,9.93198477,2018.5,2017.8,4.95581]
[1743006178889,4.95516,2018.1,2017.7,5.75522]
[1743006179091,4.95516,2018.1,2017.8,9.79981]
[1743006179388,9.10991734,2018.2,2017.9,14.5]
[1743006179593,9.16352477,2018.2,2017.9,17.505488]
[1743006179939,14.11861477,2018.2,2017.9,17.505488]
[1743006180147,9.11040734,2018.0,2017.9,19.344]
[1743006180474,4.15500734,2018.0,2017.9,14.5]
[1743006180777,4.95651,2017.6,2017.2,5.75115]
[1743006180976,4.15500734,2017.6,2017.3,9.801]
[1743006181278,4.15500734,2017.6,2017.4,14.5]
[1743006181575,4.15500734,2017.6,2017.5,1.02958419]
[1743006181750,4.15500734,2017.6,2017.4,14.5]
[1743006181949,9.16499477,2017.6,2017.4,19.344]
[1743006182453,4.20861477,2017.6,2017.4,19.344]
[1743006182786,4.20861477,2017.6,2017.5,5.70972]
[1743006182787,0.05360743,2017.6,2017.5,5.70972]
[1743006182944,9.06,2018.0,2017.8,4.95566]
[1743006182945,0.05360743,2018.0,2017.8,4.95566]
[1743006183151,9.16344477,2018.3,2017.9,10.55274]
[1743006183365,4.15500734,2018.4,2018.0,4.9552]
[1743006183651,9.16304477,2018.4,2018.0,9.91048]
[1743006183858,4.20861477,2018.4,2018.1,21.005878]
[1743006184081,3.0,2018.3,2018.1,21.005878]
[1743006184450,3.0,2018.3,2018.1,16.050758]
[1743006184672,7.95469,2018.3,2018.1,16.050758]
[1743006185000,3.0,2018.3,2018.1,16.050758]
[1743006185798,3.0,2018.3,2018.2,2.1006098]
[1743006186089,4.15500734,2018.4,2018.2,2.1006098]
[1743006186294,4.15500734,2018.4,2018.2,7.0555198]
[1743006187597,4.15500734,2018.4,2018.2,2.1006098]
[1743006188493,4.15500734,2018.4,2018.3,14.5]
[1743006190462,7.95467,2018.3,2017.9,0.7531]
[1743006190662,4.15500734,2018.0,2017.9,4.845]
[1743006192108,0.05360743,2018.1,2017.9,4.845]
[1743006192311,4.20861477,2018.1,2017.9,4.845]
[1743006192899,9.16384477,2018.1,2018.0,14.5]
[1743006193908,12.16384477,2018.1,2018.0,14.5]
[1743006194096,12.11023734,2018.1,2018.0,14.5]
[1743006194493,12.11023734,2018.1,2017.7,0.7964]
[1743006194494,4.95603,2017.8,2017.3,5.78102]
[1743006194697,4.15500734,2017.6,2017.4,4.845]
[1743006194899,4.15500734,2017.6,2017.4,9.80187]
[1743006195101,4.15500734,2017.6,2017.4,14.7586]
[1743006195308,4.15500734,2017.6,2017.5,1.45302924]
[1743006195709,4.15500734,2017.6,2017.5,2.44546043]
[1743006196019,4.15500734,2017.6,2017.5,0.99243119]
[1743006196219,4.15500734,2017.6,2017.4,4.845]
[1743006196395,4.20861477,2017.6,2017.4,4.845]
[1743006196600,0.1154512,2017.5,2017.4,4.845]
[1743006196800,0.1154512,2017.5,2017.4,10.35187]
[1743006197107,3.0,2018.0,2017.9,4.95562]
[1743006197273,4.20861477,2018.1,2017.9,9.80062]
[1743006197476,0.11456073,2018.0,2017.9,4.845]
[1743006197877,0.11456073,2018.0,2017.7,4.95593]
[1743006198102,4.15500734,2017.9,2017.8,4.845]
[1743006198689,9.22520807,2017.9,2017.8,4.845]
[1743006198879,13.64864362,2017.9,2017.8,4.845]
[1743006199073,12.22520807,2017.9,2017.5,10.46308]
[1743006199277,12.22520807,2017.9,2017.5,5.50649]
[1743006199481,0.05360743,2017.8,2017.6,4.845]
[1743006199707,0.11507629,2017.8,2017.6,9.80137]
[1743006199908,0.11507629,2017.8,2017.7,5.991267]
[1743006200115,0.11507629,2017.8,2017.7,1.035137]
[1743006201919,0.11507629,2017.8,2017.7,5.991267]
[1743006202119,0.11507629,2017.8,2017.7,1.035137]
[1743006203384,0.11507629,2017.8,2017.7,5.991267]
[1743006203889,0.11507629,2017.8,2017.7,1.035137]
[1743006204915,5.07096629,2017.8,2017.6,5.83064626]
[1743006205219,4.15500734,2017.7,2017.5,4.845]
[1743006205414,4.26984929,2017.7,2017.4,10.66785]
[1743006205607,0.11484195,2017.7,2017.5,4.845]
[1743006206311,0.11484195,2017.7,2017.5,9.80161]
[1743006206512,0.11484195,2017.7,2017.5,11.407873]
[1743006206891,4.26984929,2017.7,2017.5,6.451263]
[1743006207091,4.26984929,2017.7,2017.5,4.845]
[1743006207314,9.27959672,2017.7,2017.5,4.845]
[1743006208520,4.32345672,2017.7,2017.5,4.845]
[1743006209109,4.32345672,2017.7,2017.5,9.8016]
[1743006209310,4.32345672,2017.7,2017.5,4.845]
[1743006211126,4.32345672,2017.7,2017.5,9.80158]
[1743006211335,4.32345672,2017.7,2017.5,12.047161]
[1743006211336,0.11484195,2017.7,2017.5,12.047161]
[1743006211502,0.11484195,2017.7,2017.6,4.95638]
[1743006211930,3.0,2017.9,2017.7,4.95608]
[1743006212425,10.17777749,2018.6,2017.6,4.95638]
[1743006212426,9.10989734,2018.3,2018.0,4.95538]
[1743006212725,3.0,2018.2,2018.0,4.845]
[1743006214005,4.95443,2018.4,2018.1,4.95515]
[1743006214207,4.20861477,2018.4,2018.0,11.352459]
[1743006214418,3.0,2018.3,2018.0,11.352459]
[1743006214819,4.15500734,2018.2,2018.0,16.307769]
[1743006215122,4.15500734,2018.2,2018.0,11.352459]
[1743006215426,4.15500734,2018.2,2018.1,4.95515]
[1743006215634,4.15500734,2018.2,2018.1,6.5859559]
[1743006215809,9.16311477,2018.4,2018.1,6.5859559]
[1743006216008,9.16311477,2018.4,2018.1,4.95515]
[1743006216730,4.15500734,2018.2,2018.0,4.845]
[1743006217030,4.20861477,2018.2,2018.0,4.845]
[1743006217225,9.16354477,2018.2,2018.0,4.845]
[1743006217434,4.20861477,2018.2,2018.0,4.845]
[1743006217799,4.20861477,2018.2,2018.0,9.80039]
[1743006218044,4.20861477,2018.2,2018.0,4.845]
[1743006218349,9.16352477,2018.2,2018.0,4.845]
[1743006219004,9.16352477,2018.2,2018.0,9.80038]
[1743006219005,4.15500734,2018.2,2018.0,9.80038]
[1743006219197,4.15500734,2018.2,2018.0,11.352558]
[1743006219799,4.15500734,2018.2,2018.0,16.307818]
[1743006220043,4.15500734,2018.2,2018.1,4.95515]
[1743006220229,5.73969,2018.5,2018.1,4.95515]
[1743006220230,7.20861477,2018.4,2018.2,4.95482]
[1743006221001,7.15500734,2018.4,2018.2,4.95482]
[1743006221203,7.15500734,2018.4,2018.3,4.95466]
[1743006221563,14.06223734,2018.8,2018.4,4.95425]
[1743006221697,3.05360743,2018.7,2018.4,9.90854]
[1743006221901,3.05360743,2018.7,2018.4,10.66374]
[1743006222121,4.15500734,2018.8,2018.5,9.79908]
[1743006222334,0.7678,2018.9,2018.7,4.95366]
[1743006222335,0.05360743,2018.9,2018.7,4.95366]
[1743006222542,3.05360743,2018.9,2018.6,4.95383]
[1743006222738,8.00680743,2018.9,2018.6,4.95383]
[1743006223114,3.05360743,2018.9,2018.6,4.95383]
[1743006223326,4.15500734,2018.8,2018.5,9.79909]
[1743006223514,9.10852734,2018.8,2018.5,10.97821825]
[1743006223715,9.16213477,2018.8,2018.5,10.97821825]
[1743006223913,3.0,2018.9,2018.6,0.55]
[1743006224120,4.15500734,2019.0,2018.8,5.76738]
[1743006224336,4.15500734,2019.0,2018.8,0.814]
[1743006224832,9.10801734,2019.0,2018.8,0.814]
[1743006225050,9.16162477,2019.0,2018.6,6.32496]
[1743006225236,9.16162477,2019.0,2018.7,1.73030383]
[1743006225615,9.16162477,2019.0,2018.7,6.68396383]
[1743006225807,9.10801734,2019.0,2018.7,6.68396383]
[1743006226136,4.95301,2019.0,2018.7,6.68396383]
[1743006226738,0.11662266,2018.9,2018.7,6.68387383]
[1743006226935,0.11662266,2018.9,2018.8,5.75892738]
[1743006227436,0.9,2019.1,2018.8,5.75881738]
[1743006227617,3.9,2019.1,2018.9,5.76688]
[1743006227814,3.9,2019.1,2019.0,9.79694]
[1743006228019,0.9,2019.1,2019.0,9.79694]
[1743006228336,0.9,2019.1,2019.0,11.43387174]
[1743006228713,0.9,2019.1,2019.0,11.98387174]
[1743006230442,0.9,2019.1,2019.0,7.13987174]
[1743006230639,0.9,2019.1,2019.0,11.98287174]
[1743006234343,0.9,2019.1,2019.0,12.96949712]
[1743006236457,0.9,2019.1,2019.0,13.77829712]
[1743006241860,1.0259424,2019.1,2019.0,13.77829712]
[1743006243958,1.0259424,2019.1,2019.0,12.41749712]
[1743006245340,1.0259424,2019.1,2019.0,7.46455712]
[1743006246562,1.0259424,2019.1,2019.0,5.82762538]
[1743006248454,5.9786424,2019.1,2019.0,5.82762538]
[1743006248655,1.0259424,2019.1,2019.0,5.82762538]
[1743006248825,5.9786424,2019.1,2019.0,5.82762538]
[1743006249029,1.0259424,2019.1,2019.0,5.82762538]
[1743006249255,1.0259424,2019.1,2019.0,10.78056538]
[1743006249456,1.0259424,2019.1,2019.0,12.51357866]
[1743006251359,1.0259424,2019.1,2019.0,13.06357866]
[1743006251660,1.0259424,2019.1,2019.0,13.82907866]
[1743006252153,0.9,2019.1,2019.0,13.82907866]
[1743006252825,0.9,2019.1,2019.0,28.32907866]
[1743006254495,0.9,2019.1,2019.0,31.32907866]
[1743006271787,1e-05,2019.1,2019.0,31.32907866]
[1743006272816,1e-05,2019.1,2019.0,41.604086]
[1743006273115,0.7755,2020.1,2020.0,4.95049]
[1743006273318,0.7755,2020.1,2020.0,9.78949]
[1743006273520,0.7755,2020.1,2020.0,4.839]
[1743006273885,0.7755,2020.1,2020.0,19.339]
[1743006274418,4.15500734,2020.1,2020.0,14.5]
[1743006274587,4.93050734,2020.1,2020.0,14.5]
[1743006274788,0.7755,2020.0,2019.9,4.838]
[1743006275199,0.7755,2020.0,2019.9,19.338]
[1743006275684,0.7755,2019.7,2019.2,4.838]
[1743006275890,0.7755,2019.5,2019.2,9.79041]
[1743006276117,0.7755,2019.5,2019.2,9.79032]
[1743006276337,0.7755,2019.5,2019.3,19.45212]
[1743006277120,0.7755,2019.5,2019.3,24.40419]
[1743006277318,0.7755,2019.5,2019.3,19.45207]
[1743006277532,0.7755,2019.5,2019.4,4.95196]
[1743006277889,0.7755,2019.5,2019.4,9.78996]
[1743006278312,0.7755,2019.5,2019.4,4.838]
[1743006279349,0.7755,2019.5,2019.2,4.95244]
[1743006279350,5.72722,2019.5,2019.2,4.95244]
[1743006279499,4.15500734,2019.4,2019.1,4.95261]
[1743006279697,4.15500734,2019.4,2019.3,4.838]
[1743006282943,4.15500734,2019.4,2019.3,5.81041581]
[1743006283242,4.15500734,2019.4,2019.3,20.31041581]
[1743006283747,0.82910743,2019.5,2019.3,25.26262581]
[1743006284038,0.7755,2019.5,2019.3,25.26262581]
[1743006284232,0.7755,2019.5,2019.3,30.21470581]
[1743006284910,0.7755,2019.5,2019.4,4.95196]
[1743006286443,0.7755,2019.5,2019.3,10.76245581]
[1743006286617,0.89655852,2019.5,2019.3,10.76245581]
[1743006286917,0.89655852,2019.5,2019.4,14.5]
[1743006287220,0.89655852,2019.5,2019.4,19.45196]
[1743006287636,0.12105852,2019.5,2019.4,19.45196]
[1743006288341,3.816,2019.7,2019.4,19.45196]
[1743006288642,3.816,2019.7,2019.4,14.5]
[1743006288643,0.12105852,2019.5,2019.4,14.5]
[1743006289149,5.07277852,2019.5,2019.4,14.5]
[1743006289456,0.98876595,2019.5,2019.4,14.5]
[1743006292245,0.98876595,2019.5,2019.3,5.81041581]
[1743006292444,4.15500734,2019.4,2019.3,5.81041581]
[1743006292845,4.26341588,2019.4,2019.3,20.31041581]
[1743006293123,0.10840854,2019.4,2019.3,25.26262581]
[1743006293439,0.10840854,2019.4,2019.3,28.28413039]
[1743006295452,0.10840854,2019.4,2019.3,28.83413039]
[1743006295654,3.0,2019.6,2019.3,28.83413039]
[1743006295823,3.0,2019.8,2019.6,4.95147]
[1743006296030,3.05360743,2019.8,2019.6,4.95147]
[1743006296356,3.0,2019.8,2019.6,4.95147]
[1743006296657,3.0,2019.8,2019.7,14.5]
[1743006297024,3.0,2019.8,2019.7,19.45123]
[1743006297233,3.0,2019.8,2019.7,14.5]
[1743006298355,8.00458743,2019.8,2019.7,14.5]
[1743006298552,3.05360743,2019.8,2019.7,14.5]
[1743006299058,3.0,2019.8,2019.7,14.5]
[1743006299228,3.0,2019.8,2019.7,16.445134]
[1743006299428,3.0,2019.8,2019.7,17.45872526]
[1743006299748,5.00101477,2019.9,2019.7,17.45872526]
[1743006299949,4.15500734,2019.9,2019.7,22.40982526]
[1743006300151,4.15500734,2019.9,2019.7,21.396234]
[1743006300359,4.15500734,2019.9,2019.8,7.0906034]
[1743006300663,5.74348,2020.3,2019.9,4.95062]
[1743006300832,0.7937,2020.3,2020.1,4.95015]
[1743006301164,3.7937,2020.3,2020.1,9.90024]
[1743006301363,3.0,2020.3,2020.1,4.95009]
[1743006301552,0.11009462,2020.2,2020.1,4.95009]
[1743006302362,4.26510196,2020.2,2019.9,4.95071]
[1743006302561,5.09390196,2020.2,2019.9,4.95071]
[1743006303171,5.14750939,2020.2,2019.9,4.95071]
[1743006303331,5.14750939,2020.2,2020.0,4.95046]
[1743006303538,5.09390196,2020.2,2019.9,4.95059]
[1743006303748,5.14750939,2020.2,2019.9,7.64831134]
[1743006304644,4.15500734,2020.0,2019.9,7.64831134]
[1743006304851,4.15500734,2020.0,2019.9,2.69772134]
[1743006305050,4.26828629,2020.0,2019.9,2.69772134]
[1743006305255,4.32189372,2020.0,2019.9,4.837]
[1743006305570,4.26828629,2020.0,2019.9,4.837]
[1743006306868,4.32189372,2020.0,2019.9,4.837]
[1743006307045,4.26828629,2020.0,2019.9,4.837]
[1743006307942,4.26828629,2020.0,2019.9,9.78774]
[1743006308142,0.11327895,2020.0,2019.9,9.78774]
[1743006308366,0.11327895,2020.0,2019.9,11.57563344]
[1743006310070,0.11327895,2020.0,2019.9,12.12563344]
[1743006311180,0.11327895,2020.0,2019.9,26.62563344]
[1743006311991,0.11327895,2020.0,2019.9,27.62490939]
[1743006312298,0.11327895,2020.0,2019.9,25.83701595]
[1743006313777,10.21500734,2020.4,2020.1,4.95015]
[1743006313985,15.16453734,2020.4,2020.1,4.95015]
[1743006314181,15.16453734,2020.4,2020.3,4.94975]
[1743006314182,4.15500734,2020.4,2020.3,4.94975]
[1743006314397,0.8139,2020.5,2020.3,4.94975]
[1743006314398,3.8139,2020.5,2020.3,4.94975]
[1743006314581,3.8139,2020.5,2020.4,14.5]
[1743006315379,4.20861477,2020.6,2020.4,1.08712119]
[1743006315576,4.20861477,2020.6,2020.5,4.94926]
[1743006315577,4.15500734,2020.6,2020.5,4.94926]
[1743006315762,7.15500734,2020.6,2020.5,4.94926]
[1743006315963,4.15500734,2020.6,2020.5,4.94926]
[1743006316690,4.26875458,2020.6,2020.4,24.28532]
[1743006316873,4.26875458,2020.6,2020.4,22.340787]
[1743006317263,4.26875458,2020.6,2020.4,27.290277]
[1743006317465,4.26875458,2020.6,2020.4,32.239647]
[1743006317665,4.26875458,2020.6,2020.4,32.239577]
[1743006317868,4.26875458,2020.6,2020.4,32.239547]
[1743006318099,4.26875458,2020.6,2020.4,27.290157]
[1743006318299,4.26875458,2020.6,2020.5,1.22335187]
[1743006319503,4.26875458,2020.6,2020.5,6.17261187]
[1743006320204,4.26875458,2020.6,2020.5,1.22335187]
[1743006321700,4.26875458,2020.6,2020.4,4.835]
[1743006321891,0.05360743,2020.5,2020.4,4.835]
[1743006322090,0.168993,2020.5,2020.4,4.835]
[1743006322675,0.168993,2020.5,2020.4,9.78451]
[1743006322878,0.11538557,2020.5,2020.4,4.835]
[1743006324611,0.8239,2020.4,2020.1,4.95022]
[1743006324818,3.8239,2020.4,2020.3,4.834]
[1743006325718,3.0,2020.4,2020.3,9.78375]
[1743006326292,4.97270734,2020.6,2020.3,9.78375]
[1743006326597,3.0,2020.5,2020.3,11.71456258]
[1743006326800,4.20861477,2020.6,2020.4,9.8988]
[1743006327003,4.20861477,2020.6,2020.4,4.94938]
[1743006327199,7.20861477,2020.6,2020.5,14.5]
[1743006329809,7.15500734,2020.6,2020.5,19.44926]
[1743006331311,9.06,2020.7,2020.6,4.94902]
[1743006331507,3.11688351,2020.7,2020.6,4.94902]
[1743006331714,0.11688351,2020.7,2020.6,5.5485092]
[1743006331894,0.07,2020.9,2020.8,4.94853]
[1743006332092,0.17786326,2020.9,2020.8,9.78253]
[1743006332297,0.17786326,2020.9,2020.8,12.355557]
[1743006333104,0.17786326,2020.9,2020.8,13.114057]
[1743006335046,0.17786326,2020.9,2020.8,27.614057]
[1743006335224,0.17786326,2020.9,2020.8,27.613057]
[1743006335527,4.3328706,2020.9,2020.8,12.354557]
[1743006335724,4.3328706,2020.9,2020.8,2.023027]
[1743006335917,4.3328706,2020.9,2020.8,4.833]
[1743006336398,0.17786326,2020.9,2020.8,9.78153]
[1743006337231,0.17786326,2020.9,2020.8,4.833]
[1743006339629,0.17786326,2020.9,2020.8,19.333]
[1743006341231,0.17786326,2020.9,2020.8,27.754591]
[1743006341441,0.17786326,2020.9,2020.8,28.538991]
[1743006342014,0.17786326,2020.9,2020.8,27.754591]
[1743006343639,0.17786326,2020.9,2020.8,22.256061]
[1743006343930,0.17786326,2020.9,2020.8,27.204591]
[1743006345117,0.17786326,2020.9,2020.8,27.754591]
[1743006351648,0.17786326,2020.9,2020.8,13.254591]
[1743006352240,0.17786326,2020.9,2020.8,14.047091]
[1743006353923,0.07,2020.9,2020.8,14.047091]
[1743006356452,0.07,2020.9,2020.8,14.044091]
[1743006357026,0.1832491,2020.9,2020.8,14.044091]
[1743006357246,0.07,2020.9,2020.8,14.044091]
[1743006357722,0.1832491,2020.9,2020.8,14.044091]
[1743006358246,0.07,2020.9,2020.8,14.044091]
[1743006358557,0.1832491,2020.9,2020.8,14.044091]
[1743006358948,0.07,2020.9,2020.8,14.044091]
[1743006359126,0.07,2020.9,2020.8,18.19909834]
[1743006359648,0.07,2020.9,2020.8,14.044091]
[1743006360145,0.18498126,2020.9,2020.8,14.044091]
[1743006360362,0.07,2020.9,2020.8,14.044091]
[1743006361267,0.07,2020.9,2020.8,18.19909834]
[1743006367650,1e-05,2021.1,2021.0,5.70904]
[1743006367849,1e-05,2021.1,2021.0,16.07489998]
[1743006368170,1e-05,2021.1,2021.0,16.02543117]
[1743006369173,1e-05,2021.1,2021.0,11.87042383]
[1743006370353,1e-05,2021.1,2021.0,16.57543117]
[1743006371984,1e-05,2021.1,2021.0,11.87042383]
[1743006372149,1e-05,2021.1,2021.0,16.02543117]
[1743006372354,1e-05,2021.1,2021.0,16.57543117]
[1743006372790,1e-05,2021.1,2021.0,31.07543117]
[1743006374765,1e-05,2021.1,2021.0,32.04770775]
[1743006377661,4e-06,2021.4,2021.3,4.94731]
[1743006377859,4e-06,2021.4,2021.3,16.90362834]
[1743006378270,4e-06,2021.4,2021.3,31.40362834]
[1743006380584,4e-06,2021.4,2021.3,41.50256817]
[1743006384672,4e-06,2021.4,2021.3,42.49722724]
[1743006391286,4e-06,2021.4,2021.3,38.3422199]